[Event "Early Titled Tuesday Blitz | February 8 2022"]
[White "Volkov, Maksim"]
[Black "Mirzoev, Azer"]
[WhiteFideId "54123070"]
[BlackFideId "13400304"]
[WhiteElo "2081"]
[BlackElo "2525"]
[Result "0-1"]
[Round "11"]
[TimeControl "180+1"]
[Date "2022.02.08"]
[WhiteClock "0:00:10"]
[BlackClock "0:00:39"]

1. d4 {[%clk 0:03:00]}  d5 {[%clk 0:02:53]} 2. c4 {[%clk 0:03:00]}  e6 {[%clk 0:02:53]} 3. Nf3 {[%clk 0:03:00]}  c6 {[%clk 0:02:53]} 4. g3 {[%clk 0:02:56]}  f5 {[%clk 0:02:52]} 5. Nc3 {[%clk 0:02:55]}  Nf6 {[%clk 0:02:51]} 6. Bg2 {[%clk 0:02:54]}  Bd6 {[%clk 0:02:52]} 7. Bf4 {[%clk 0:02:53]}  Bxf4 {[%clk 0:02:50]} 8. gxf4 {[%clk 0:02:53]}  O-O {[%clk 0:02:50]} 9. e3 {[%clk 0:02:51]}  Nbd7 {[%clk 0:02:49]} 10. O-O {[%clk 0:02:50]}  dxc4 {[%clk 0:02:47]} 11. Qe2 {[%clk 0:02:43]}  b5 {[%clk 0:02:41]} 12. Ng5 {[%clk 0:02:41]}  Nb6 {[%clk 0:02:16]} 13. Bxc6 {[%clk 0:02:39]}  Bd7 {[%clk 0:02:16]} 14. Bxb5 {[%clk 0:02:17]}  Rb8 {[%clk 0:02:03]} 15. Bxc4 {[%clk 0:02:10]}  Nxc4 {[%clk 0:02:01]} 16. Qxc4 {[%clk 0:02:10]}  Qe7 {[%clk 0:01:50]} 17. Rfd1 {[%clk 0:02:02]}  Rxb2 {[%clk 0:01:44]} 18. d5 {[%clk 0:02:02]}  Rc8 {[%clk 0:01:43]} 19. Qd3 {[%clk 0:01:45]}  h6 {[%clk 0:01:36]} 20. Nf3 {[%clk 0:01:33]}  Ng4 {[%clk 0:01:27]} 21. dxe6 {[%clk 0:01:25]}  Bxe6 {[%clk 0:01:25]} 22. Nd5 {[%clk 0:01:25]}  Qf7 {[%clk 0:01:21]} 23. Ne5 {[%clk 0:01:15]}  Qh5 {[%clk 0:01:10]} 24. Nxg4 {[%clk 0:00:31]}  Qxg4+ {[%clk 0:01:10]} 25. Kf1 {[%clk 0:00:31]}  Qf3 {[%clk 0:01:00]} 26. Rd2 {[%clk 0:00:10]}  Rxd2 {[%clk 0:00:56]} 27. Ne7+ {[%clk 0:00:09]}  Kh7 {[%clk 0:00:43]} 28. Qxd2 {[%clk 0:00:10]}  Qh1+ {[%clk 0:00:39]} 29. Ke2 {[%clk 0:00:10]}  Bc4+ {[%clk 0:00:39]} 0-1


[Site "https://www.chess.com"]

[Event "Early Titled Tuesday Blitz | February 8 2022"]
[White "Winkels, Marcel"]
[Black "Risteski, Emil"]
[WhiteFideId "1003887"]
[BlackFideId "15005267"]
[WhiteElo "1900"]
[BlackElo "2070"]
[Result "0-1"]
[Round "11"]
[TimeControl "180+1"]
[Date "2022.02.08"]
[WhiteClock "0:00:44"]
[BlackClock "0:01:49"]

1. e4 {[%clk 0:03:00]}  d6 {[%clk 0:03:00]} 2. d4 {[%clk 0:03:00]}  Nf6 {[%clk 0:03:00]} 3. Nc3 {[%clk 0:03:00]}  e5 {[%clk 0:03:01]} 4. Nf3 {[%clk 0:02:56]}  Nbd7 {[%clk 0:03:01]} 5. Rg1 {[%clk 0:02:56]}  g6 {[%clk 0:02:58]} 6. g4 {[%clk 0:02:55]}  Bg7 {[%clk 0:02:58]} 7. g5 {[%clk 0:02:53]}  Nh5 {[%clk 0:02:57]} 8. Be3 {[%clk 0:02:50]}  O-O {[%clk 0:02:57]} 9. Qd2 {[%clk 0:02:48]}  c6 {[%clk 0:02:57]} 10. O-O-O {[%clk 0:02:47]}  b5 {[%clk 0:02:57]} 11. d5 {[%clk 0:02:27]}  b4 {[%clk 0:02:56]} 12. Ne2 {[%clk 0:02:26]}  c5 {[%clk 0:02:55]} 13. Ng3 {[%clk 0:02:25]}  Nf4 {[%clk 0:02:54]} 14. Bxf4 {[%clk 0:02:19]}  exf4 {[%clk 0:02:54]} 15. Qxf4 {[%clk 0:02:19]}  Qe7 {[%clk 0:02:52]} 16. h4 {[%clk 0:02:05]}  a5 {[%clk 0:02:51]} 17. h5 {[%clk 0:02:05]}  a4 {[%clk 0:02:49]} 18. hxg6 {[%clk 0:02:04]}  fxg6 {[%clk 0:02:48]} 19. Qe3 {[%clk 0:01:51]}  Ne5 {[%clk 0:02:29]} 20. Nd2 {[%clk 0:01:43]}  Ng4 {[%clk 0:02:23]} 21. Qe2 {[%clk 0:01:26]}  Nxf2 {[%clk 0:02:09]} 22. Re1 {[%clk 0:01:13]}  Ba6 {[%clk 0:02:05]} 23. Nc4 {[%clk 0:01:12]}  Qxg5+ {[%clk 0:02:04]} 24. Kb1 {[%clk 0:01:10]}  Bxc4 {[%clk 0:02:04]} 25. Qxc4 {[%clk 0:01:07]}  Qf6 {[%clk 0:02:01]} 26. e5 {[%clk 0:01:03]}  dxe5 {[%clk 0:02:02]} 27. d6+ {[%clk 0:00:57]}  Kh8 {[%clk 0:02:01]} 28. Ne4 {[%clk 0:00:56]}  Nxe4 {[%clk 0:02:00]} 29. Qxe4 {[%clk 0:00:55]}  Qxd6 {[%clk 0:01:56]} 30. Bd3 {[%clk 0:00:47]}  Qd4 {[%clk 0:01:51]} 31. Qc6 {[%clk 0:00:44]}  e4 {[%clk 0:01:49]} 0-1


[Site "https://www.chess.com"]

[Event "Early Titled Tuesday Blitz | February 8 2022"]
[White "Yang, Kaiqi"]
[Black "Lopez Gracia, Fernando"]
[WhiteFideId "8604398"]
[BlackFideId "2207184"]
[WhiteElo "2373"]
[BlackElo "2425"]
[Result "1-0"]
[Round "11"]
[TimeControl "180+1"]
[Date "2022.02.08"]
[WhiteClock "0:01:43"]
[BlackClock "0:02:37"]

1. c4 {[%clk 0:03:00]}  e6 {[%clk 0:02:59]} 2. g3 {[%clk 0:02:59]}  d5 {[%clk 0:02:59]} 3. d4 {[%clk 0:03:00]}  Nf6 {[%clk 0:02:58]} 4. Bg2 {[%clk 0:03:00]}  dxc4 {[%clk 0:02:58]} 5. Nf3 {[%clk 0:02:59]}  a6 {[%clk 0:02:57]} 6. O-O {[%clk 0:02:57]}  b5 {[%clk 0:02:54]} 7. Ne5 {[%clk 0:02:55]}  Nd5 {[%clk 0:02:55]} 8. e4 {[%clk 0:02:50]}  Nf6 {[%clk 0:02:54]} 9. a4 {[%clk 0:02:45]}  Bb7 {[%clk 0:02:53]} 10. axb5 {[%clk 0:02:44]}  axb5 {[%clk 0:02:54]} 11. Rxa8 {[%clk 0:02:44]}  Bxa8 {[%clk 0:02:55]} 12. Nc3 {[%clk 0:02:45]}  c6 {[%clk 0:02:48]} 13. b3 {[%clk 0:02:34]}  Bb4 {[%clk 0:02:46]} 14. Na2 {[%clk 0:02:33]}  Bd6 {[%clk 0:02:36]} 15. bxc4 {[%clk 0:02:31]}  O-O {[%clk 0:02:36]} 16. Bg5 {[%clk 0:02:04]}  h6 {[%clk 0:02:36]} 17. Bxf6 {[%clk 0:02:04]}  gxf6 {[%clk 0:02:36]} 18. Ng4 {[%clk 0:01:48]}  Kh7 {[%clk 0:02:37]} 19. Qd2 {[%clk 0:01:43]} 1-0


[Site "https://www.chess.com"]

[Event "Early Titled Tuesday Blitz | February 8 2022"]
[White "parintele_chess"]
[Black "Kostina, Nadezhda"]
[BlackFideId "4195876"]
[WhiteElo "2212"]
[BlackElo "2001"]
[Result "0-1"]
[Round "11"]
[TimeControl "180+1"]
[Date "2022.02.08"]
[WhiteClock "0:00:06"]
[BlackClock "0:00:07"]

1. d4 {[%clk 0:02:59]}  Nf6 {[%clk 0:02:58]} 2. Nc3 {[%clk 0:02:59]}  d5 {[%clk 0:02:55]} 3. Bf4 {[%clk 0:03:00]}  c6 {[%clk 0:02:47]} 4. e3 {[%clk 0:02:59]}  g6 {[%clk 0:02:43]} 5. Bd3 {[%clk 0:02:58]}  Bg7 {[%clk 0:02:42]} 6. h4 {[%clk 0:02:54]}  h5 {[%clk 0:02:37]} 7. f3 {[%clk 0:02:54]}  Nbd7 {[%clk 0:02:28]} 8. Nh3 {[%clk 0:02:53]}  b5 {[%clk 0:02:26]} 9. a3 {[%clk 0:02:53]}  Nb6 {[%clk 0:02:26]} 10. Nf2 {[%clk 0:02:52]}  Nc4 {[%clk 0:02:26]} 11. Qc1 {[%clk 0:02:45]}  Bh6 {[%clk 0:02:20]} 12. Bxh6 {[%clk 0:02:42]}  Rxh6 {[%clk 0:02:18]} 13. b3 {[%clk 0:02:43]}  Nb6 {[%clk 0:02:12]} 14. e4 {[%clk 0:02:43]}  Rh8 {[%clk 0:01:41]} 15. e5 {[%clk 0:02:42]}  Nh7 {[%clk 0:01:30]} 16. Qf4 {[%clk 0:02:36]}  Nf8 {[%clk 0:01:27]} 17. O-O-O {[%clk 0:02:08]}  Ne6 {[%clk 0:01:25]} 18. Qe3 {[%clk 0:02:03]}  a5 {[%clk 0:01:20]} 19. Ne2 {[%clk 0:01:59]}  a4 {[%clk 0:01:18]} 20. b4 {[%clk 0:01:59]}  Nc4 {[%clk 0:01:18]} 21. Bxc4 {[%clk 0:01:59]}  bxc4 {[%clk 0:01:18]} 22. g4 {[%clk 0:01:45]}  c3 {[%clk 0:01:04]} 23. Qxc3 {[%clk 0:01:38]}  Qb6 {[%clk 0:01:00]} 24. f4 {[%clk 0:01:28]}  Ba6 {[%clk 0:00:58]} 25. Rd2 {[%clk 0:01:16]}  Bxe2 {[%clk 0:00:57]} 26. Rxe2 {[%clk 0:01:15]}  Nxf4 {[%clk 0:00:56]} 27. Re3 {[%clk 0:01:14]}  Ne6 {[%clk 0:00:47]} 28. Rd1 {[%clk 0:01:10]}  hxg4 {[%clk 0:00:46]} 29. Nxg4 {[%clk 0:01:09]}  Rxh4 {[%clk 0:00:45]} 30. Rg3 {[%clk 0:01:02]}  O-O-O {[%clk 0:00:40]} 31. Kb2 {[%clk 0:00:48]}  Rdh8 {[%clk 0:00:36]} 32. Ka2 {[%clk 0:00:34]}  Rh1 {[%clk 0:00:35]} 33. Rxh1 {[%clk 0:00:33]}  Rxh1 {[%clk 0:00:34]} 34. Ne3 {[%clk 0:00:34]}  Qxd4 {[%clk 0:00:23]} 35. Qxd4 {[%clk 0:00:26]}  Nxd4 {[%clk 0:00:22]} 36. b5 {[%clk 0:00:22]}  Nxb5 {[%clk 0:00:20]} 37. Rf3 {[%clk 0:00:22]}  Re1 {[%clk 0:00:17]} 38. Ng4 {[%clk 0:00:14]}  d4 {[%clk 0:00:15]} 39. Kb2 {[%clk 0:00:07]}  Nc3 {[%clk 0:00:15]} 40. Rxc3 {[%clk 0:00:06]}  dxc3+ {[%clk 0:00:15]} 41. Kxc3 {[%clk 0:00:07]}  Re4 {[%clk 0:00:13]} 42. Nh6 {[%clk 0:00:07]}  Rxe5 {[%clk 0:00:11]} 43. Nxf7 {[%clk 0:00:08]}  Rc5+ {[%clk 0:00:11]} 44. Kb2 {[%clk 0:00:07]}  Rf5 {[%clk 0:00:09]} 45. Nh6 {[%clk 0:00:07]}  Rf4 {[%clk 0:00:09]} 46. Kc1 {[%clk 0:00:04]}  Kd7 {[%clk 0:00:09]} 47. Kd2 {[%clk 0:00:05]}  Ke8 {[%clk 0:00:07]} 48. Ke3 {[%clk 0:00:05]}  Rh4 {[%clk 0:00:07]} 49. Ng8 {[%clk 0:00:05]}  Kf8 {[%clk 0:00:07]} 50. Nxe7 {[%clk 0:00:06]}  Kxe7 {[%clk 0:00:07]} 0-1